[Event "82nd Italian Championship 2023"]
[Site "Brescia"]
[Date "2023.12.05"]
[Round "7.3"]
[White "Brunello, Sabino"]
[Black "Iermito, Sebastian"]
[Result "1-0"]
[ECO "A13"]
[WhiteElo "2492"]
[BlackElo "2524"]
[Annotator "RC"]
[PlyCount "113"]
[EventDate "2023.11.28"]
[EventType "tourn"]
[EventCountry "ITA"]
[SourceTitle "playchess.com"]
[Source "ChessBase"]
[SourceQuality "1"]
[TimeControl "40/6000+30:20/3000+30:900+30"]

1. c4 {[%emt 0:02:19]} e6 {[%emt 0:00:05]} 2. g3 {[%emt 0:00:16]} d5 {[%emt 0:00:05]} 3. Bg2 {[%emt 0:00:05]} d4 {[%emt 0:00:03]} 4. Nf3 {[%emt 0:00:21]} Nc6 {[%emt 0:00:11]} 5. O-O {[%emt 0:00:36]} Bc5 {[%emt 0:00:13]} 6. d3 {[%emt 0:00:10]} Nf6 {[%emt 0:00:24]} 7. Nbd2 {[%emt 0:00:52]} O-O {[%emt 0:00:10]} 8. Nb3 {[%emt 0:01:33]} Be7 {[%emt 0:00:04]} 9. e3 {[%emt 0:00:58]} dxe3 {[%emt 0:00:04]} 10. Bxe3 {[%emt 0:21:40]} Ng4 {[%emt 0:00:17]} 11. Bc5 {[%emt 0:03:29]} Rb8 {[%emt 0:00:06]} 12. Bxe7 {[%emt 0:03:51]} Nxe7 {[%emt 0:04:01]} 13. Qe2 {[%emt 0:15:06]} b6 {[%emt 0:03:51]} 14. d4 {[%emt 0:01:56]} Bb7 {[%emt 0:17:22]} 15. Rfd1 {[%emt 0:05:33]} Nf6 {[%emt 0:04:33]} 16. Rac1 {[%emt 0:02:08]} Bxf3 {[%emt 0:01:00]} 17. Bxf3 {[%emt 0:01:37]} c6 {[%emt 0:00:12]} 18. Rc3 {[%emt 0:05:50]} Rb7 {[%emt 0:05:26]} 19. Na1 {[%emt 0:04:50]} Rd7 {[%emt 0:00:55]} 20. Rcd3 {[%emt 0:08:50]} Qc7 {[%emt 0:18:17]} 21. b4 {[%emt 0:01:03]} Rfd8 {[%emt 0:16:08]} 22. Nc2 {[%emt 0:04:04]} Nf5 {[%emt 0:02:54]} 23. Bg2 {[%emt 0:07:46]} b5 {[%emt 0:06:42]} 24. cxb5 {[%emt 0:16:00]} cxb5 {[%emt 0:00:02]} 25. d5 {[%emt 0:00:06]} Nxd5 {[%emt 0:12:57]} 26. Bxd5 {[%emt 0:00:23]} exd5 {[%emt 0:00:35]} 27. Rxd5 {[%emt 0:00:09]} Rxd5 {[%emt 0:01:27]} 28. Rxd5 {[%emt 0:00:02]} Nd6 {[%emt 0:01:27]} 29. Ne3 {[%emt 0:01:37]} a6 {[%emt 0:03:07]} 30. Qd3 {[%emt 0:01:35]} Nb7 {[%emt 0:03:17]} 31. h4 {[%emt 0:00:05]} h6 {[%emt 0:01:28]} 32. Qd4 {[%emt 0:01:03]} Rxd5 {[%emt 0:01:21]} 33. Qxd5 {[%emt 0:00:18]} Nd8 {[%emt 0:01:01]} 34. Nf5 {[%emt 0:00:40]} Kh7 {[%emt 0:01:54]} 35. Nd4 {[%emt 0:00:25]} Qe7 {[%emt 0:01:13]} 36. Kg2 {[%emt 0:00:31]} Nb7 {[%emt 0:01:35]} 37. Nf5 {[%emt 0:00:19]} Qc7 {[%emt 0:01:25]} 38. h5 {[%emt 0:00:10]} Nd8 {[%emt 0:01:41]} 39. Nd4 {[%emt 0:00:09]} Kg8 {[%emt 0:00:29]} 40. Kf3 {[%emt 0:01:22]} Qe7 {[%emt 0:01:34]} 41. a3 {[%emt 0:07:04]} Nb7 {[%emt 0:04:31]} 42. Nf5 {[%emt 0:06:33]} Qe6 {[%emt 0:04:53]} 43. Kf4 {[%emt 0:10:28]} Qxd5 {[%emt 0:08:12]} 44. Ne7+ {[%emt 0:00:13]} Kf8 {[%emt 0:00:08]} 45. Nxd5 {[%emt 0:00:01]} Nd6 {[%emt 0:00:07]} 46. Nb6 {[%emt 0:07:48]} f6 {[%emt 0:10:33]} 47. Ke3 {[%emt 0:00:35]} Kf7 {[%emt 0:02:46]} 48. Kd4 {[%emt 0:07:50]} Ke6 {[%emt 0:00:05]} 49. Nd5 {[%emt 0:00:35]} Nc4 {[%emt 0:06:45]} 50. a4 {[%emt 0:08:37]} Kd6 {[%emt 0:02:10]} 51. axb5 {[%emt 0:02:13]} axb5 {[%emt 0:00:02]} 52. Ne3 {[%emt 0:00:11]} Nxe3 {[%emt 0:08:38]} 53. fxe3 {[%emt 0:00:18]} f5 {[%emt 0:01:36]} 54. e4 {[%emt 0:00:42]} fxe4 {[%emt 0:00:15]} 55. Kxe4 {[%emt 0:00:05]} Ke6 {[%emt 0:00:04]} 56. Kd4 {[%emt 0:00:30]} Kd6 {[%emt 0:02:27]} 57. g4 {[%emt 0:01:07]} 1-0

[Event "82nd Italian Championship 2023"]
[Site "Brescia"]
[Date "2023.12.05"]
[Round "7.4"]
[White "Lumachi, Gabriele"]
[Black "Carnicelli, Valerio"]
[Result "0-1"]
[ECO "E71"]
[WhiteElo "2395"]
[BlackElo "2423"]
[Annotator "RC"]
[PlyCount "80"]
[EventDate "2023.11.28"]
[EventType "tourn"]
[EventCountry "ITA"]
[SourceTitle "playchess.com"]
[Source "ChessBase"]
[SourceQuality "1"]
[TimeControl "40/6000+30:20/3000+30:900+30"]

1. d4 {[%emt 0:00:02]} Nf6 {[%emt 0:01:46]} 2. c4 {[%emt 0:00:02]} g6 {[%emt 0:00:04]} 3. Nc3 {[%emt 0:00:05]} Bg7 {[%emt 0:00:03]} 4. e4 {[%emt 0:00:14]} d6 {[%emt 0:00:03]} 5. h3 {[%emt 0:00:37]} O-O {[%emt 0:00:04]} 6. Be3 {[%emt 0:00:16]} e5 {[%emt 0:00:06]} 7. d5 {[%emt 0:00:04]} Na6 {[%emt 0:00:03]} 8. g4 {[%emt 0:00:21]} Nc5 {[%emt 0:00:05]} 9. f3 {[%emt 0:00:05]} a5 {[%emt 0:00:04]} 10. Qd2 {[%emt 0:00:04]} c6 {[%emt 0:00:04]} 11. Nge2 {[%emt 0:00:42]} a4 {[%emt 0:00:10]} 12. Ng3 {[%emt 0:00:06]} h5 {[%emt 0:00:11]} 13. Rg1 {[%emt 0:00:43]} cxd5 {[%emt 0:00:16]} 14. cxd5 {[%emt 0:00:22]} h4 {[%emt 0:00:09]} 15. Nh1 {[%emt 0:01:56]} Bd7 {[%emt 0:00:19]} 16. Nf2 {[%emt 0:05:03]} Nh7 {[%emt 0:00:10]} 17. Nb5 {[%emt 0:12:18]} Bxb5 {[%emt 0:00:10]} 18. Bxb5 {[%emt 0:00:07]} f6 {[%emt 0:00:08]} 19. Be2 {[%emt 0:41:46]} Ng5 {[%emt 0:00:53]} 20. Kf1 {[%emt 0:01:42]} Bh6 {[%emt 0:03:08]} 21. Kg2 {[%emt 0:03:27]} Rc8 {[%emt 0:03:45]} 22. Rac1 {[%emt 0:02:28]} Rc7 {[%emt 0:07:17]} 23. Nd3 {[%emt 0:14:35]} Ngxe4 {[%emt 0:39:22]} 24. fxe4 {[%emt 0:04:06]} Nxe4 {[%emt 0:00:04]} 25. Qb4 {[%emt 0:02:46]} Bxe3 {[%emt 0:00:09]} 26. Rxc7 {[%emt 0:01:24]} Qxc7 {[%emt 0:01:14]} 27. Qxe4 {[%emt 0:00:08]} Bxg1 {[%emt 0:00:08]} 28. Qxg6+ {[%emt 0:00:05]} Qg7 {[%emt 0:00:10]} 29. Qxg7+ {[%emt 0:00:07]} Kxg7 {[%emt 0:00:03]} 30. Kxg1 {[%emt 0:00:04]} a3 {[%emt 0:00:58]} 31. bxa3 {[%emt 0:05:07]} Rc8 {[%emt 0:07:49]} 32. Ne1 {[%emt 0:07:14]} Rc5 {[%emt 0:14:06]} 33. Nf3 {[%emt 0:01:24]} Rxd5 {[%emt 0:04:30]} 34. Kf2 {[%emt 0:05:47]} f5 {[%emt 0:12:13]} 35. gxf5 {[%emt 0:00:38]} Kf6 {[%emt 0:00:28]} 36. Ke3 {[%emt 0:01:40]} Ra5 {[%emt 0:02:32]} 37. Bc4 {[%emt 0:00:45]} Rc5 {[%emt 0:01:18]} 38. Bb3 {[%emt 0:00:31]} d5 {[%emt 0:00:43]} 39. Kd2 {[%emt 0:00:37]} e4 {[%emt 0:04:10]} 40. Nxh4 {[%emt 0:00:11]} d4 {[%emt 0:00:35]} 0-1

[Event "82nd Italian Championship 2023"]
[Site "Brescia"]
[Date "2023.12.05"]
[Round "7.5"]
[White "Basso, Pier Luigi"]
[Black "Moroni, Luca Jr"]
[Result "1/2-1/2"]
[WhiteElo "2483"]
[BlackElo "2575"]
[Annotator "TA"]
[PlyCount "43"]
[EventDate "2023.11.28"]
[EventType "tourn"]
[EventCountry "ITA"]
[SourceTitle "playchess.com"]
[Source "ChessBase"]
[SourceQuality "1"]
[TimeControl "40/6000+30:20/3000+30:900+30"]

{[%evp 11,19,16,16,12,31,23,19,16,16,0]} 1. e4 {[%emt 0:03:01]} e5 {[%emt 0:00:02]} 2. Nf3 {[%emt 0:00:05]} Nc6 {[%emt 0:00:04]} 3. Bc4 {[%emt 0:00:05]} Bc5 {[%emt 0:00:03]} 4. O-O {[%emt 0:00:07]} Nf6 {[%emt 0:00:03]} 5. d3 {[%emt 0:00:09]} d6 {[%emt 0:00:02]} 6. c3 {[%emt 0:00:07]} a6 {[%emt 0:00:03]} 7. a4 {[%emt 0:00:07] 7.Re1 is the recent fashion. C54: Giuoco Piano: 4 c3 Nf6, main lines with 5 d4 and 5 d3.} Ba7 {[%emt 0:00:04]} 8. Nbd2 {[%emt 0:00:08]} O-O {[%emt 0:00:05]} 9. h3 {[%emt 0:00:05]} h6 {[%emt 0:00:03]} 10. Re1 {[%emt 0:00:06] [#] Not much happened in this game.   Weighted Error Value: White=0.03 (flawless) /Black=0.04 (flawless)} {Predecessor:} Re8 $146 11. b4 Be6 12. Bxe6 Rxe6 13. Bb2 Re8 14. Nf1 d5 15. Qc2 Qd6 16. Ng3 dxe4 17. dxe4 Rad8 18. Qb3 Qe6 19. Qxe6 Rxe6 20. Red1 Red6 21. Rxd6 cxd6 22. Kf1 {½-½ Dominguez Perez,L (2739)-Harikrishna,P (2711) World-chT Rapid 2023 (12)} 1/2-1/2

[Event "82nd Italian Championship 2023"]
[Site "Brescia"]
[Date "2023.12.05"]
[Round "7.6"]
[White "Gilevych, Artem"]
[Black "Sonis, Francesco"]
[Result "1/2-1/2"]
[ECO "B27"]
[WhiteElo "2416"]
[BlackElo "2564"]
[Annotator "TA"]
[PlyCount "193"]
[EventDate "2023.11.28"]
[EventType "tourn"]
[EventCountry "ITA"]
[SourceTitle "playchess.com"]
[Source "ChessBase"]
[SourceQuality "1"]
[TimeControl "40/6000+30:20/3000+30:900+30"]

{[%evp 10,193,106,108,125,23,23,25,20,18,22,18,18,20,15,22,81,14,25,9,21,14,27,12,13,7,0,0,0,0,18,17,29,15,16,8,17,2,9,0,0,0,8,0,0,0,0,0,0,0,0,0,2,0,0,0,0,0,0,0,0,0,0,0,0,0,0,0,0,0,0,0,0,0,0,0,0,0,0,0,0,0,0,0,0,0,0,0,0,0,0,0,0,0,0,0,0,0,0,0,0,0,0,-8,-8,-8,-8,-8,-8,-8,-8,-8,-8,-8,-8,-8,-8,-8,0,-8,-8,-8,-8,-8,-8,-8,-8,-8,-8,-8,-8,-8,-8,-8,-8,-8,-8,-8,-8,-8,-8,-8,0,-8,-8,-8,-8,-8,-8,-8,-8,-8,-8,-8,-8,-8,-8,-8,-8,-8,-8,-8,-8,-8,-8,-8,-8,-8,-8,-8,-8,-8,-8,-8,-8,-8,-8,-8,-8,-8,-8,-8,8,-8,-8,-8]} 1. e4 {[%emt 0:00:03]} c5 {[%emt 0:00:08]} 2. Nf3 {[%emt 0:00:05]} h6 {[%emt 0:00:02]} 3. c3 {[%emt 0:00:49]} d5 {[%emt 0:00:59]} 4. exd5 {[%emt 0:00:13]} Nf6 {[%emt 0:00:06]} 5. d4 {[%emt 0:00:54]} cxd4 {[%emt 0:00:06]} ({Black should play} 5... Qxd5 $14 6. Be3) 6. Bb5+ $16 {[%emt 0:03:41]} ({Much worse is} 6. Qxd4 $6 Qxd5 7. Bc4 Qxd4 8. Nxd4 Bd7 $11) 6... Bd7 {[%emt 0:00:09] [#]} 7. Bxd7+ {[%emt 0:00:26]} ({But not} 7. Nxd4 Bxb5 8. Nxb5 a6 $11) (7. Bc4 $1 $16) 7... Qxd7 $11 {[%emt 0:00:27]} 8. c4 {[%emt 0:00:41]} e6 $1 {[%emt 0:00:05]} 9. O-O {[%emt 0:01:21]} exd5 {[%emt 0:00:13]} 10. Re1+ {[%emt 0:02:45]} Be7 {[%emt 0:00:05]} 11. cxd5 {[%emt 0:00:50]} Qxd5 {[%emt 0:00:19]} 12. Nxd4 {[%emt 0:01:16]} Qd7 {[%emt 0:03:33] [#]} (12... Nc6 $11 {remains equal.} 13. Nxc6 Qxd1 14. Rxd1 bxc6) 13. Nc3 {[%emt 0:13:40]} ({Better is} 13. Qf3 $1 $16) 13... O-O $1 $11 {[%emt 0:01:33]} 14. Qf3 {[%emt 0:02:30]} Qxd4 {[%emt 0:09:56]} 15. Rxe7 {[%emt 0:00:07]} Nbd7 $1 {[%emt 0:00:44]} 16. Bf4 {[%emt 0:11:52]} Rae8 {[%emt 0:01:14]} 17. Rxe8 {[%emt 0:05:23]} Rxe8 {[%emt 0:00:04]} 18. h3 {[%emt 0:00:16]} Qb4 {[%emt 0:04:19]} 19. b3 {[%emt 0:06:12]} Qa3 {[%emt 0:06:49]} 20. Rd1 {[%emt 0:09:37]} b6 {[%emt 0:03:13]} (20... Qb4 {is more complex.} 21. Qg3 Nh5 22. Bd6 Qb6) 21. Qd3 {[%emt 0:12:36]} Qa5 {[%emt 0:04:13]} 22. Qc4 {[%emt 0:01:27]} Qf5 {[%emt 0:01:27]} 23. Bg3 {[%emt 0:04:16]} Nc5 {[%emt 0:00:56]} 24. b4 {[%emt 0:03:26]} Nce4 {[%emt 0:01:05]} 25. Nxe4 {[%emt 0:00:32]} Rxe4 {[%emt 0:00:05]} 26. Rd8+ {[%emt 0:05:24]} Kh7 $1 {[%emt 0:00:08]} 27. Qd3 {[%emt 0:00:24]} (27. Qxf7 $2 {loses.} Re1+ 28. Kh2 Ng4+ 29. hxg4 Qxf7 $19) 27... Qg6 {[%emt 0:02:10]} 28. a3 {[%emt 0:09:07]} (28. b5 {simplifies} Rb4 29. Bb8 Qxd3 30. Rxd3 Rxb5 31. Bxa7 Nd5 32. f3) 28... Re1+ {[%emt 0:01:11]} 29. Kh2 {[%emt 0:00:04]} Ne4 {[%emt 0:00:53]} (29... Qxd3 {simplifies} 30. Rxd3 Re7 31. Bb8 a6) 30. Rd7 {[%emt 0:01:41]} a6 {[%emt 0:10:24]} 31. Qf3 {[%emt 0:00:22]} Nf6 {[%emt 0:01:45]} 32. Rd1 {[%emt 0:00:15]} Rxd1 {[%emt 0:00:52]} 33. Qxd1 {[%emt 0:00:01]} b5 {[%emt 0:00:06]} 34. Be5 {[%emt 0:02:29]} Ne4 {[%emt 0:00:22]} 35. Qd4 {[%emt 0:02:08]} Ng5 {[%emt 0:00:40]} 36. Bf4 {[%emt 0:04:07]} Ne6 {[%emt 0:00:05]} 37. Qd6 {[%emt 0:00:18]} Qc2 {[%emt 0:03:24]} 38. Bg3 {[%emt 0:01:20]} Qc8 $1 {[%emt 0:00:06]} 39. Qd3+ {[%emt 0:00:57]} Kg8 {[%emt 0:00:03]} 40. Qd6 {[%emt 0:00:03]} Ng5 {[%emt 0:00:31]} 41. Qd5 {[%emt 0:55:01]} Qe6 {[%emt 0:50:12]} 42. Qd8+ {[%emt 0:00:07]} Kh7 {[%emt 0:00:05]} 43. Qd3+ {[%emt 0:00:14]} Qg6 {[%emt 0:01:29]} 44. Qd5 {[%emt 0:00:36]} Qe6 {[%emt 0:00:22]} 45. Qd3+ {[%emt 0:00:32]} f5 {[%emt 0:00:05]} 46. f3 {[%emt 0:00:00]} Nf7 {[%emt 0:00:00]} 47. h4 {[%emt 0:00:00]} g5 {[%emt 0:00:00]} 48. hxg5 {[%emt 0:00:00]} hxg5 {[%emt 0:00:00]} 49. Qc2 {[%emt 0:00:00]} Kg7 {[%emt 0:00:00]} 50. Qd3 {[%emt 0:00:00]} Kg6 {[%emt 0:00:00]} 51. Bb8 {[%emt 0:00:00]} Kh5 {[%emt 0:00:00]} 52. Bg3 {[%emt 0:00:00]} Nh6 {[%emt 0:00:00]} 53. Bb8 {[%emt 0:00:00]} f4 {[%emt 0:00:00]} 54. g4+ {[%emt 0:00:00]} fxg3+ $1 {[%emt 0:00:00]} 55. Bxg3 {[%emt 0:00:00]} Nf5 {[%emt 0:00:00]} 56. Bf2 {[%emt 0:00:00]} Qd6+ {[%emt 0:00:00]} 57. Qxd6 {[%emt 0:00:00]} Nxd6 {[%emt 0:00:00]} 58. Be3 {[%emt 0:00:00]} Nc4 {[%emt 0:00:00]} 59. Bc1 $1 {[%emt 0:00:00]} Kh4 {[%emt 0:00:00]} 60. Kg2 {[%emt 0:00:00]} g4 {[%emt 0:00:00]} 61. Bf4 {[%emt 0:21:06]} Nxa3 {[%emt 0:00:00]} 62. Kf2 {[%emt 0:00:10]} Nc2 {[%emt 0:06:23]} 63. Bd2 $1 {[%emt 0:00:00]} Na3 {[%emt 0:00:00]} 64. Bf4 {[%emt 0:00:00]} Kh3 {[%emt 0:00:00]} 65. Bd6 $1 {[%emt 0:00:00]} Nc2 {[%emt 0:00:00]} 66. fxg4 {[%emt 0:00:00]} Kxg4 {[%emt 0:00:00]} 67. Ke2 {[%emt 0:00:00]} Kf5 {[%emt 0:00:05]} 68. Kd3 {[%emt 0:00:00]} Ke6 {[%emt 0:00:04]} 69. Bf8 {[%emt 0:00:00]} Ne1+ {[%emt 0:01:00]} 70. Kd4 {[%emt 0:00:07]} Kd7 {[%emt 0:00:16]} 71. Kc5 {[%emt 0:01:05]} Kc7 {[%emt 0:00:02]} 72. Bd6+ {[%emt 0:00:10]} Kb7 {[%emt 0:00:03]} 73. Bf8 {[%emt 0:00:37]} Nd3+ {[%emt 0:00:17]} 74. Kd4 {[%emt 0:00:38]} Nf4 {[%emt 0:00:04]} 75. Bd6 {[%emt 0:00:12]} Ne2+ {[%emt 0:00:06]} 76. Kc5 {[%emt 0:02:02]} Nc3 {[%emt 0:00:06]} 77. Bf4 {[%emt 0:02:20]} Na4+ {[%emt 0:00:13]} 78. Kd6 {[%emt 0:00:35]} Nb6 {[%emt 0:00:12]} 79. Kc5 {[%emt 0:00:24]} Nd7+ {[%emt 0:00:03]} 80. Kd6 {[%emt 0:00:09]} Nf6 {[%emt 0:00:13]} 81. Kc5 {[%emt 0:00:40]} Ne4+ {[%emt 0:00:10]} 82. Kd5 {[%emt 0:00:17]} Nf2 {[%emt 0:00:05]} 83. Bg3 {[%emt 0:01:04]} Nd3 {[%emt 0:00:08]} 84. Bd6 {[%emt 0:00:06]} Kb6 {[%emt 0:00:04]} 85. Be7 {[%emt 0:01:29]} Kc7 {[%emt 0:00:05]} 86. Bd6+ {[%emt 0:01:09]} Kd7 {[%emt 0:00:04]} 87. Bf8 {[%emt 0:00:52]} Nf4+ {[%emt 0:00:04]} 88. Ke4 {[%emt 0:00:20]} Ne6 {[%emt 0:01:05]} 89. Bh6 {[%emt 0:00:06]} Kd6 {[%emt 0:00:04]} 90. Be3 {[%emt 0:00:29]} Nd8 {[%emt 0:00:23]} 91. Bf4+ {[%emt 0:00:16]} Ke6 {[%emt 0:00:35]} 92. Kd4 {[%emt 0:00:21]} Kd7 {[%emt 0:00:35]} 93. Kd5 {[%emt 0:00:28]} Nc6 {[%emt 0:00:08]} 94. Kc5 {[%emt 0:00:18]} a5 {[%emt 0:00:04]} 95. bxa5 {[%emt 0:00:09]} b4 {[%emt 0:00:04]} 96. Kc4 {[%emt 0:00:27]} Nxa5+ {[%emt 0:00:02]} 97. Kxb4 {[%emt 0:00:03]} 1/2-1/2

[Event "82nd Italian Championship 2023"]
[Site "Brescia"]
[Date "2023.12.06"]
[Round "8.1"]
[White "Santagati, Alessandro"]
[Black "Sonis, Francesco"]
[Result "0-1"]
[ECO "C54"]
[WhiteElo "2245"]
[BlackElo "2564"]
[Annotator "TA"]
[PlyCount "50"]
[EventDate "2023.11.28"]
[EventType "tourn"]
[EventCountry "ITA"]
[SourceTitle "playchess.com"]
[Source "ChessBase"]
[SourceQuality "1"]
[TimeControl "40/6000+30:20/3000+30:900+30"]

{[%evp 17,50,10,2,0,0,0,0,-97,-64,-56,-22,-14,-9,-14,0,0,0,-104,-41,-117,-39,-29,-13,-29,-11,-110,-114,-245,-220,-750,-742,-849,-839,-29996,-229]} 1. e4 {[%emt 0:04:12]} e5 {[%emt 0:00:11]} 2. Nf3 {[%emt 0:00:05]} Nc6 {[%emt 0:00:05]} 3. Bc4 {[%emt 0:00:05]} Bc5 {[%emt 0:00:03]} 4. O-O {[%emt 0:00:07]} Nf6 {[%emt 0:00:04]} 5. d3 {[%emt 0:00:05]} a6 {[%emt 0:00:27]} 6. a4 {[%emt 0:00:13]} O-O {[%emt 0:00:26]} 7. c3 {[%emt 0:04:52]} Ba7 {[%emt 0:00:07]} 8. b4 {[%emt 0:03:42]} d6 {[%emt 0:01:27]} 9. Nbd2 {[%emt 0:04:49]} Ne7 {[%emt 0:08:51]} 10. Re1 {[%emt 0:01:29] C54: Giuoco Piano: 4 c3 Nf6, main lines with 5 d4 and 5 d3.} Ng6 {[%emt 0:03:01]} 11. Nf1 {[%emt 0:02:15]} c6 {[%emt 0:07:52] [#]} 12. Ba3 $146 {[%emt 0:10:06]} (12. Bb3 $11) ({Predecessor:} 12. Be3 Bb8 13. Bb3 d5 14. exd5 cxd5 15. Bg5 Re8 16. Ne3 Be6 17. Bxf6 gxf6 18. c4 {½-½ Xiong,J (2692)-Salem,A (2677) Speed Chess Q2 KO blitz 2022 (1.10)}) 12... d5 {[%emt 0:08:44]} (12... Qb6 $6 13. Ne3 $11) 13. Bb3 {[%emt 0:01:15]} dxe4 {[%emt 0:07:26]} (13... Qb6 14. Qc2 $11) 14. dxe4 {[%emt 0:00:17][%cal Ob4b5]} Ng4 {[%emt 0:00:06] Hoping for ...Qxd1.} 15. Ra2 $1 {[%emt 0:06:00]} ({Much worse is} 15. Ne3 Qf6 16. Bc1 Nh4 $15) 15... Qf6 {[%emt 0:01:00] White must now prevent ...Rd8.} 16. h3 $1 {[%emt 0:03:11]} Rd8 {[%emt 0:04:53]} 17. Qc1 {[%emt 0:03:40] [#]} (17. Qb1 $11 Nxf2 18. Rxf2) 17... Be6 {[%emt 0:15:03]} (17... Nf4 $1 $17 18. hxg4 Bxg4) 18. c4 {[%emt 0:05:27]} (18. Qb1 $15 Nxf2 19. Rxf2) 18... Nh6 {[%emt 0:14:19]} (18... Rd3 $17 19. hxg4 Rxb3) 19. Qg5 $1 $15 {[%emt 0:36:18]} Rd3 $36 {[%emt 0:00:08][%mdl 2048] Black has some pressure.} 20. Qxf6 {[%emt 0:00:27]} gxf6 {[%emt 0:00:03]} 21. N3d2 {[%emt 0:10:13]} (21. Bc2 $11 Bxc4 22. Bxd3 Bxa2 23. Bc1) 21... Nf4 $17 {[%emt 0:03:42] Strongly threatening ...Kh8. Black has more active pieces.} 22. Bc1 {[%emt 0:04:48] This costs White the game.} (22. Bc2 $17 {was called for.}) 22... Kh8 $19 {[%emt 0:03:06]} 23. Bc2 $2 {[%emt 0:02:38] [#]} (23. Ne3 Rg8 24. Kf1 (24. Kh1 $2 Nxg2 25. Rg1 Nxe3 $19)) 23... Nxh3+ $1 {[%emt 0:00:50][%mdl 512]} 24. gxh3 {[%emt 0:01:17]} (24. Kh1 Nxf2+) 24... Rg8+ {[%emt 0:00:05]} 25. Kh1 {[%emt 0:00:24]} Rxh3+ {[%emt 0:00:09] Weighted Error Value: White=0.93/Black=0.17 (very precise)} 0-1

[Event "82nd Italian Championship 2023"]
[Site "Brescia"]
[Date "2023.12.06"]
[Round "8.2"]
[White "Moroni, Luca Jr"]
[Black "Gilevych, Artem"]
[Result "1-0"]
[ECO "D35"]
[WhiteElo "2575"]
[BlackElo "2416"]
[Annotator "TA"]
[PlyCount "79"]
[EventDate "2023.11.28"]
[EventType "tourn"]
[EventCountry "ITA"]
[SourceTitle "playchess.com"]
[Source "ChessBase"]
[SourceQuality "1"]
[TimeControl "40/6000+30:20/3000+30:900+30"]

{[%evp 13,79,11,13,7,16,12,15,5,19,17,28,11,28,34,47,40,67,22,40,51,70,79,81,67,73,91,152,86,97,56,77,74,218,212,302,291,386,209,213,201,198,203,213,8,15,28,16,6,272,268,746,743,677,701,1216,1184,1126,712,704,654,1013,1020,993,982,1087,962,1777,1739]} 1. c4 {[%emt 0:00:03]} e6 {[%emt 0:04:22]} 2. Nc3 {[%emt 0:01:38]} d5 {[%emt 0:00:24]} 3. d4 {[%emt 0:00:05]} Nf6 {[%emt 0:00:16]} 4. cxd5 {[%emt 0:01:15]} exd5 {[%emt 0:00:04]} 5. Bg5 {[%emt 0:00:18]} Be7 {[%emt 0:00:18]} 6. e3 {[%emt 0:00:06]} O-O {[%emt 0:00:21]} 7. Bd3 {[%emt 0:00:20]} Re8 {[%emt 0:01:26]} 8. Nge2 {[%emt 0:01:57] 8.Nf3 is setting a new trend. D35: Queen's Gambit Declined: Exchange Variation.} h6 {[%emt 0:01:59]} 9. Bh4 {[%emt 0:05:51]} c6 {[%emt 0:00:28]} 10. O-O {[%emt 0:02:26] The position is equal.} a5 {[%emt 0:00:18]} 11. h3 $5 {[%emt 0:01:16][%mdl 4] A promising side line.} Na6 {[%emt 0:04:33]} 12. Kh1 {[%emt 0:00:10] [#]} b5 $146 {[%emt 0:37:39]} ({Predecessor:} 12... Nc7 13. Qc2 b5 14. a4 b4 15. Nb1 Ba6 16. Nd2 Bxd3 17. Qxd3 Ne6 18. Bxf6 Bxf6 {0-1 Cojocari,D (2051)-Petkov,M (2499) Sebes GP op 2023 (10)}) 13. Rc1 {[%emt 0:06:26]} Nc7 {[%emt 0:06:36]} 14. a4 {[%emt 0:06:43][%cal Ra4b5]} Rb8 {[%emt 0:17:51]} 15. Qb3 {[%emt 0:12:59][%cal Ra4b5]} Be6 {[%emt 0:13:08]} 16. axb5 {[%emt 0:06:51]} cxb5 {[%emt 0:03:03]} 17. Nf4 {[%emt 0:03:15]} (17. Nxb5 $2 Nxb5 18. Bxf6 (18. Bxb5 $2 Bd7 $19) 18... gxf6 $19) 17... a4 {[%emt 0:05:50]} 18. Qd1 {[%emt 0:04:41] White is much more active.} Qd7 {[%emt 0:07:26]} 19. Nxe6 {[%emt 0:01:08]} fxe6 {[%emt 0:00:24]} ({Black should try} 19... Nxe6 20. Bg3 Rb6) 20. Bb1 {[%emt 0:02:27]} (20. Bxf6 $142 Bxf6 21. Qg4) 20... Rec8 $16 {[%emt 0:02:16]} 21. f4 {[%emt 0:07:13]} Nce8 {[%emt 0:00:11] [#]} 22. f5 $1 {[%emt 0:01:10]} b4 {[%emt 0:01:14]} (22... Rc4 $16) 23. fxe6 $18 {[%emt 0:03:02][%mdl 64] Remove Defender} (23. Nxa4 $2 Rxc1 24. Qxc1 Qxa4 $19) 23... Qxe6 {[%emt 0:00:01]} (23... Qd6 {was necessary.}) 24. Bf5 {[%emt 0:01:44][%mdl 64] Skewer, Deflection} (24. Nxa4 Ne4 $16) 24... Qd6 {[%emt 0:00:57] [#]} 25. Nxd5 {[%emt 0:12:58][%mdl 512]} Nxd5 {[%emt 0:00:03]} 26. Bxc8 {[%emt 0:02:00]} Bxh4 {[%emt 0:00:35]} 27. Qh5 {[%emt 0:01:21]} (27. Qxa4 Nec7 28. Rc6 Qg3 29. Rxc7 Nxc7 30. Qb3+ Kh7 31. Qc2+ Kg8 32. Qb3+ Kh7 33. Qc2+ Kg8 34. Qb3+ $11) 27... Nec7 {[%emt 0:01:16]} 28. Qxh4 $2 {[%emt 0:09:40]} ({Only move:} 28. e4 $1 $18 Ne7 29. e5) 28... Rxc8 $11 {[%emt 0:00:03]} 29. e4 {[%emt 0:00:04][%cal Be3e4,Be4e5][%mdl 32]} Ne7 {[%emt 0:00:42]} (29... Nf6 $2 30. e5 Qd7 31. exf6 $18) 30. d5 $36 {[%emt 0:00:21][%cal Oe4e5,Bd4d5,Bd5d6][%mdl 2080] Hoping for e5! White is pushing.} Ne8 $2 {[%emt 0:01:13][%mdl 8192] Wards off e5} (30... Qe5 $1 $11) 31. e5 {[%emt 0:02:51]} (31. Qh5 Nf6 32. Rxc8+ Nxc8 $15) 31... Qd7 {[%emt 0:00:31]} (31... Qxd5 $2 32. Qxe7 Rb8 33. Rf8+ Kh7 34. Rxe8 $18) (31... Qxe5 $2 32. Rxc8 (32. Qxb4 Rxc1 33. Rxc1 Nxd5 $15) 32... Nxc8 33. Re1 $18 (33. Qxb4 Nf6 $11)) (31... Rxc1 32. exd6 Rxf1+ 33. Kh2 Nxd6) 32. Rxc8 $18 {[%emt 0:01:29] White is clearly winning.} ({Not} 32. Qxb4 Rxc1 33. Rxc1 Nxd5 $11) 32... Nxc8 {[%emt 0:00:05]} 33. Qxb4 {[%emt 0:00:15] Qf8+ is the strong threat.} Ne7 {[%emt 0:00:18]} 34. d6 {[%emt 0:00:47]} ({Weaker is} 34. e6 Qd6 35. Qxa4 Nc7 $16) 34... Ng6 {[%emt 0:00:33]} 35. Qe4 {[%emt 0:04:20]} Nf8 {[%emt 0:00:40]} 36. Rf4 {[%emt 0:02:08]} Qe6 {[%emt 0:00:47]} 37. Qc4 {[%emt 0:00:27]} Qxc4 {[%emt 0:00:25]} 38. Rxc4 {[%emt 0:00:05]} Kf7 {[%emt 0:00:04]} 39. Rf4+ {[%emt 0:00:07]} Kg8 {[%emt 0:00:06]} 40. Rxa4 {[%emt 0:00:09] Weighted Error Value: White=0.26 (precise) /Black=0.39} 1-0